[Event "Titled Tuesday Blitz May 2 Late 2023"]
[White "Tanenbaum, Zachary"]
[Black "Martins, Bruno Andre Leite"]
[WhiteFideId "2060850"]
[BlackFideId "1942255"]
[WhiteElo "2175"]
[BlackElo "2240"]
[Result "0-1"]
[Round "07"]
[TimeControl "180+2"]
[Date "2023.05.02"]
[WhiteClock "0:00:03"]
[BlackClock "0:01:04"]

1. e4 {[%clk 0:03:00]}  e5 {[%clk 0:02:49]} 2. Nf3 {[%clk 0:03:00]}  Nc6 {[%clk 0:02:48]} 3. Bc4 {[%clk 0:03:00]}  Bc5 {[%clk 0:02:45]} 4. c3 {[%clk 0:03:00]}  Nf6 {[%clk 0:02:42]} 5. d4 {[%clk 0:03:00]}  exd4 {[%clk 0:02:41]} 6. b4 {[%clk 0:03:01]}  Be7 {[%clk 0:02:32]} 7. b5 {[%clk 0:03:00]}  Na5 {[%clk 0:02:28]} 8. Bd3 {[%clk 0:03:00]}  d5 {[%clk 0:02:24]} 9. e5 {[%clk 0:02:59]}  Ne4 {[%clk 0:02:23]} 10. cxd4 {[%clk 0:02:58]}  Bf5 {[%clk 0:02:22]} 11. O-O {[%clk 0:02:56]}  O-O {[%clk 0:02:20]} 12. Nbd2 {[%clk 0:02:23]}  Nxf2 {[%clk 0:02:14]} 13. Rxf2 {[%clk 0:02:21]}  Bxd3 {[%clk 0:02:15]} 14. Nf1 {[%clk 0:01:50]}  Bxb5 {[%clk 0:02:11]} 15. Ne3 {[%clk 0:01:40]}  Qd7 {[%clk 0:02:05]} 16. Qc2 {[%clk 0:01:38]}  Ba4 {[%clk 0:02:01]} 17. Qb1 {[%clk 0:01:36]}  c5 {[%clk 0:01:55]} 18. Nf5 {[%clk 0:01:32]}  Nc6 {[%clk 0:01:55]} 19. Ng5 {[%clk 0:01:14]}  Bxg5 {[%clk 0:01:51]} 20. Bxg5 {[%clk 0:01:15]}  Nxd4 {[%clk 0:01:52]} 21. Nxg7 {[%clk 0:00:25]}  Kxg7 {[%clk 0:01:52]} 22. Bf6+ {[%clk 0:00:26]}  Kg8 {[%clk 0:01:50]} 23. h3 {[%clk 0:00:17]}  Rfc8 {[%clk 0:01:43]} 24. Qc1 {[%clk 0:00:09]}  Kf8 {[%clk 0:01:44]} 25. Qh6+ {[%clk 0:00:08]}  Ke8 {[%clk 0:01:44]} 26. e6 {[%clk 0:00:05]}  Qxe6 {[%clk 0:01:41]} 27. Qxh7 {[%clk 0:00:05]}  Ne2+ {[%clk 0:01:36]} 28. Kh2 {[%clk 0:00:04]}  Qd6+ {[%clk 0:01:35]} 29. Kh1 {[%clk 0:00:02]}  Ng3+ {[%clk 0:01:32]} 30. Kg1 {[%clk 0:00:03]}  Ne4 {[%clk 0:01:31]} 31. Qg8+ {[%clk 0:00:03]}  Qf8 {[%clk 0:01:28]} 32. Qg4 {[%clk 0:00:03]}  Bd7 {[%clk 0:01:24]} 33. Qf4 {[%clk 0:00:03]}  Be6 {[%clk 0:01:22]} 34. Re1 {[%clk 0:00:02]}  Nxf2 {[%clk 0:01:19]} 35. Qxf2 {[%clk 0:00:02]}  Qd6 {[%clk 0:01:18]} 36. Qh4 {[%clk 0:00:02]}  Kd7 {[%clk 0:01:16]} 37. Qa4+ {[%clk 0:00:02]}  Qc6 {[%clk 0:01:15]} 38. Qf4 {[%clk 0:00:03]}  Rg8 {[%clk 0:01:12]} 39. Bh4 {[%clk 0:00:03]}  Rg6 {[%clk 0:01:11]} 40. Qf3 {[%clk 0:00:03]}  Rag8 {[%clk 0:01:10]} 41. g3 {[%clk 0:00:04]}  d4 {[%clk 0:01:09]} 42. Qf4 {[%clk 0:00:04]}  Qd6 {[%clk 0:01:04]} 43. Qf3 {[%clk 0:00:03]}  Rxg3+ {[%clk 0:01:03]} 44. Bxg3 {[%clk 0:00:03]}  Rxg3+ {[%clk 0:01:04]} 0-1


[Site "https://www.chess.com"]

[Event "Titled Tuesday Blitz May 2 Late 2023"]
[White "Pakleza, Zbigniew"]
[Black "Lee, Linden"]
[WhiteFideId "1119290"]
[BlackFideId "30941830"]
[WhiteElo "2410"]
[BlackElo "1985"]
[Result "1-0"]
[Round "07"]
[TimeControl "180+2"]
[Date "2023.05.02"]
[WhiteClock "0:01:00"]
[BlackClock "0:01:18"]

1. d4 {[%clk 0:03:00]}  Nf6 {[%clk 0:03:00]} 2. Nf3 {[%clk 0:03:00]}  g6 {[%clk 0:03:00]} 3. Bf4 {[%clk 0:03:00]}  Bg7 {[%clk 0:03:00]} 4. e3 {[%clk 0:03:01]}  O-O {[%clk 0:03:01]} 5. Be2 {[%clk 0:03:01]}  d6 {[%clk 0:03:02]} 6. h3 {[%clk 0:03:02]}  Nfd7 {[%clk 0:03:02]} 7. O-O {[%clk 0:03:02]}  e5 {[%clk 0:03:03]} 8. Bh2 {[%clk 0:03:03]}  Nc6 {[%clk 0:03:03]} 9. c4 {[%clk 0:03:03]}  h6 {[%clk 0:03:03]} 10. Nc3 {[%clk 0:03:03]}  f5 {[%clk 0:03:03]} 11. Rc1 {[%clk 0:02:59]}  g5 {[%clk 0:03:01]} 12. dxe5 {[%clk 0:02:59]}  dxe5 {[%clk 0:03:01]} 13. Qd5+ {[%clk 0:02:58]}  Kh8 {[%clk 0:03:01]} 14. Rfd1 {[%clk 0:02:59]}  Qe7 {[%clk 0:03:00]} 15. Qd2 {[%clk 0:02:56]}  Nb6 {[%clk 0:02:58]} 16. Nd5 {[%clk 0:02:46]}  Nxd5 {[%clk 0:02:54]} 17. cxd5 {[%clk 0:02:42]}  Nd8 {[%clk 0:02:51]} 18. Qc3 {[%clk 0:02:37]}  e4 {[%clk 0:02:34]} 19. Ne5 {[%clk 0:02:34]}  Kh7 {[%clk 0:02:19]} 20. Qxc7 {[%clk 0:02:31]}  Qxc7 {[%clk 0:02:19]} 21. Rxc7 {[%clk 0:02:31]}  f4 {[%clk 0:02:20]} 22. Bh5 {[%clk 0:01:51]}  Bf5 {[%clk 0:02:18]} 23. d6 {[%clk 0:01:48]}  Ne6 {[%clk 0:02:14]} 24. Rxb7 {[%clk 0:01:44]}  Nc5 {[%clk 0:02:06]} 25. Rc7 {[%clk 0:01:41]}  Ne6 {[%clk 0:02:04]} 26. Re7 {[%clk 0:01:41]}  Rad8 {[%clk 0:01:53]} 27. d7 {[%clk 0:01:27]}  Nc5 {[%clk 0:01:32]} 28. exf4 {[%clk 0:01:15]}  gxf4 {[%clk 0:01:30]} 29. Bxf4 {[%clk 0:01:15]}  Nxd7 {[%clk 0:01:18]} 30. Nxd7 {[%clk 0:01:02]}  Rxd7 {[%clk 0:01:18]} 31. Rdxd7 {[%clk 0:01:01]}  Bxd7 {[%clk 0:01:18]} 32. Be5 {[%clk 0:01:00]} 1-0


[Site "https://www.chess.com"]

[Event "Titled Tuesday Blitz May 2 Late 2023"]
[White "Kanakaris, Georgios"]
[Black "Yanchenko, Roman"]
[WhiteFideId "4209460"]
[BlackFideId "4137329"]
[WhiteElo "2291"]
[BlackElo "2491"]
[Result "0-1"]
[Round "07"]
[TimeControl "180+2"]
[Date "2023.05.02"]
[WhiteClock "0:00:03"]
[BlackClock "0:00:19"]

1. d4 {[%clk 0:03:00]}  d5 {[%clk 0:02:59]} 2. c4 {[%clk 0:03:00]}  c6 {[%clk 0:03:00]} 3. Nf3 {[%clk 0:03:00]}  Bf5 {[%clk 0:02:59]} 4. Qb3 {[%clk 0:02:54]}  Qb6 {[%clk 0:02:59]} 5. cxd5 {[%clk 0:02:51]}  Bxb1 {[%clk 0:02:59]} 6. Rxb1 {[%clk 0:02:44]}  Qxb3 {[%clk 0:02:59]} 7. axb3 {[%clk 0:02:44]}  cxd5 {[%clk 0:02:59]} 8. e3 {[%clk 0:02:42]}  Nc6 {[%clk 0:03:00]} 9. Bd2 {[%clk 0:02:41]}  e6 {[%clk 0:03:00]} 10. Rc1 {[%clk 0:02:34]}  a6 {[%clk 0:03:00]} 11. Bd3 {[%clk 0:02:32]}  Bd6 {[%clk 0:02:58]} 12. Ke2 {[%clk 0:02:32]}  f5 {[%clk 0:02:58]} 13. Rc2 {[%clk 0:02:17]}  Nge7 {[%clk 0:02:57]} 14. Rhc1 {[%clk 0:02:17]}  Kd7 {[%clk 0:02:53]} 15. Ng5 {[%clk 0:02:12]}  Rhc8 {[%clk 0:02:37]} 16. Nf7 {[%clk 0:02:08]}  Bc7 {[%clk 0:02:33]} 17. f4 {[%clk 0:02:01]}  h6 {[%clk 0:02:21]} 18. Rg1 {[%clk 0:01:55]}  Ke8 {[%clk 0:02:14]} 19. Ne5 {[%clk 0:01:52]}  Bxe5 {[%clk 0:02:12]} 20. dxe5 {[%clk 0:01:48]}  g5 {[%clk 0:02:09]} 21. g3 {[%clk 0:01:37]}  Kd7 {[%clk 0:02:00]} 22. Rcc1 {[%clk 0:01:30]}  Rg8 {[%clk 0:01:54]} 23. h4 {[%clk 0:01:26]}  Rac8 {[%clk 0:01:48]} 24. Kf2 {[%clk 0:01:15]}  gxh4 {[%clk 0:01:31]} 25. gxh4 {[%clk 0:01:14]}  Rg4 {[%clk 0:01:31]} 26. Rxg4 {[%clk 0:00:51]}  fxg4 {[%clk 0:01:32]} 27. h5 {[%clk 0:00:52]}  Nf5 {[%clk 0:01:32]} 28. Rg1 {[%clk 0:00:48]}  Rg8 {[%clk 0:01:30]} 29. Be2 {[%clk 0:00:44]}  g3+ {[%clk 0:01:30]} 30. Kf1 {[%clk 0:00:35]}  Nce7 {[%clk 0:01:19]} 31. Bd3 {[%clk 0:00:30]}  Nh4 {[%clk 0:01:16]} 32. Ke2 {[%clk 0:00:27]}  Nef5 {[%clk 0:01:01]} 33. Be1 {[%clk 0:00:27]}  Ke7 {[%clk 0:00:56]} 34. Bb4+ {[%clk 0:00:18]}  Kd7 {[%clk 0:00:49]} 35. Be1 {[%clk 0:00:17]}  b5 {[%clk 0:00:49]} 36. Bxf5 {[%clk 0:00:14]}  Nxf5 {[%clk 0:00:49]} 37. Kf3 {[%clk 0:00:14]}  Rc8 {[%clk 0:00:48]} 38. Bxg3 {[%clk 0:00:14]}  Rc2 {[%clk 0:00:47]} 39. Bf2 {[%clk 0:00:13]}  Rxb2 {[%clk 0:00:47]} 40. Ra1 {[%clk 0:00:12]}  Rxb3 {[%clk 0:00:44]} 41. Rxa6 {[%clk 0:00:12]}  b4 {[%clk 0:00:42]} 42. Ke2 {[%clk 0:00:11]}  Rb2+ {[%clk 0:00:42]} 43. Kf1 {[%clk 0:00:11]}  b3 {[%clk 0:00:42]} 44. Ra7+ {[%clk 0:00:09]}  Kc6 {[%clk 0:00:42]} 45. Ra6+ {[%clk 0:00:07]}  Kb5 {[%clk 0:00:41]} 46. Rxe6 {[%clk 0:00:07]}  Rc2 {[%clk 0:00:34]} 47. e4 {[%clk 0:00:08]}  d4 {[%clk 0:00:28]} 48. exf5 {[%clk 0:00:07]}  b2 {[%clk 0:00:28]} 49. Rb6+ {[%clk 0:00:06]}  Kxb6 {[%clk 0:00:28]} 50. Bxd4+ {[%clk 0:00:07]}  Kc6 {[%clk 0:00:29]} 51. Bxb2 {[%clk 0:00:07]}  Rxb2 {[%clk 0:00:29]} 52. f6 {[%clk 0:00:07]}  Kd7 {[%clk 0:00:25]} 53. f5 {[%clk 0:00:07]}  Ke8 {[%clk 0:00:20]} 54. e6 {[%clk 0:00:06]}  Rb5 {[%clk 0:00:20]} 55. Kg2 {[%clk 0:00:03]}  Rxf5 {[%clk 0:00:20]} 56. f7+ {[%clk 0:00:03]}  Kf8 {[%clk 0:00:19]} 0-1


[Site "https://www.chess.com"]

[Event "Titled Tuesday Blitz May 2 Late 2023"]
[White "Mustafayev, Farid"]
[Black "Bilych, Olexiy"]
[WhiteFideId "13408771"]
[BlackFideId "14156504"]
[WhiteElo "2237"]
[BlackElo "2320"]
[Result "0-1"]
[Round "07"]
[TimeControl "180+2"]
[Date "2023.05.02"]
[WhiteClock "0:00:12"]
[BlackClock "0:00:05"]

1. c4 {[%clk 0:02:58]}  e5 {[%clk 0:02:58]} 2. Nc3 {[%clk 0:02:57]}  Nf6 {[%clk 0:02:59]} 3. g3 {[%clk 0:02:57]}  c6 {[%clk 0:02:55]} 4. Bg2 {[%clk 0:02:57]}  d5 {[%clk 0:02:55]} 5. cxd5 {[%clk 0:02:56]}  cxd5 {[%clk 0:02:56]} 6. d4 {[%clk 0:02:49]}  e4 {[%clk 0:02:55]} 7. Nh3 {[%clk 0:02:49]}  h6 {[%clk 0:02:51]} 8. O-O {[%clk 0:02:49]}  Bb4 {[%clk 0:02:45]} 9. Bf4 {[%clk 0:02:46]}  O-O {[%clk 0:02:41]} 10. Be5 {[%clk 0:02:43]}  Nbd7 {[%clk 0:02:37]} 11. Nf4 {[%clk 0:02:41]}  Bxc3 {[%clk 0:02:31]} 12. bxc3 {[%clk 0:02:41]}  Re8 {[%clk 0:02:30]} 13. Bxf6 {[%clk 0:02:32]}  Nxf6 {[%clk 0:02:31]} 14. e3 {[%clk 0:02:30]}  b6 {[%clk 0:02:21]} 15. Qa4 {[%clk 0:02:30]}  Bd7 {[%clk 0:02:12]} 16. Qb3 {[%clk 0:02:30]}  Bc8 {[%clk 0:02:00]} 17. Qb5 {[%clk 0:02:07]}  Qd7 {[%clk 0:01:46]} 18. Qxd7 {[%clk 0:01:51]}  Bxd7 {[%clk 0:01:47]} 19. Rfc1 {[%clk 0:01:52]}  Bb5 {[%clk 0:01:43]} 20. Bf1 {[%clk 0:01:50]}  Bxf1 {[%clk 0:01:36]} 21. Kxf1 {[%clk 0:01:51]}  Rec8 {[%clk 0:01:36]} 22. Rab1 {[%clk 0:01:51]}  g5 {[%clk 0:01:34]} 23. Ne2 {[%clk 0:01:50]}  Rc4 {[%clk 0:01:31]} 24. Rb4 {[%clk 0:01:48]}  Rac8 {[%clk 0:01:30]} 25. Rxc4 {[%clk 0:01:49]}  Rxc4 {[%clk 0:01:31]} 26. Kg2 {[%clk 0:01:49]}  Kf8 {[%clk 0:01:28]} 27. Rb1 {[%clk 0:01:48]}  Ra4 {[%clk 0:01:26]} 28. Rb2 {[%clk 0:01:48]}  Ke7 {[%clk 0:01:25]} 29. h3 {[%clk 0:01:48]}  Ne8 {[%clk 0:01:16]} 30. g4 {[%clk 0:01:24]}  Nd6 {[%clk 0:01:15]} 31. Ng3 {[%clk 0:01:24]}  Ke6 {[%clk 0:01:14]} 32. Rc2 {[%clk 0:01:24]}  Rc4 {[%clk 0:00:59]} 33. f3 {[%clk 0:01:18]}  b5 {[%clk 0:00:44]} 34. fxe4 {[%clk 0:01:00]}  dxe4 {[%clk 0:00:40]} 35. Ne2 {[%clk 0:00:53]}  f6 {[%clk 0:00:28]} 36. Rb2 {[%clk 0:00:52]}  Ra4 {[%clk 0:00:22]} 37. Kf2 {[%clk 0:00:52]}  Kd5 {[%clk 0:00:18]} 38. Ke1 {[%clk 0:00:43]}  a6 {[%clk 0:00:18]} 39. Kf2 {[%clk 0:00:38]}  f5 {[%clk 0:00:14]} 40. gxf5 {[%clk 0:00:33]}  Nxf5 {[%clk 0:00:15]} 41. Rc2 {[%clk 0:00:32]}  Rc4 {[%clk 0:00:11]} 42. Rc1 {[%clk 0:00:29]}  Ra4 {[%clk 0:00:09]} 43. Rc2 {[%clk 0:00:26]}  h5 {[%clk 0:00:07]} 44. c4+ {[%clk 0:00:19]}  Rxc4 {[%clk 0:00:07]} 45. Nc3+ {[%clk 0:00:19]}  Ke6 {[%clk 0:00:07]} 46. a3 {[%clk 0:00:17]}  a5 {[%clk 0:00:07]} 47. d5+ {[%clk 0:00:17]}  Ke5 {[%clk 0:00:06]} 48. d6 {[%clk 0:00:12]}  Nxd6 {[%clk 0:00:05]} 0-1


[Site "https://www.chess.com"]

[Event "Titled Tuesday Blitz May 2 Late 2023"]
[White "Saya, Ethan"]
[Black "Gritsenko, Nikolai"]
[WhiteFideId "26095181"]
[BlackFideId "14112493"]
[WhiteElo "2189"]
[BlackElo "2389"]
[Result "1/2-1/2"]
[Round "07"]
[TimeControl "180+2"]
[Date "2023.05.02"]
[WhiteClock "0:00:39"]
[BlackClock "0:00:09"]

1. e4 {[%clk 0:03:00]}  d5 {[%clk 0:02:58]} 2. exd5 {[%clk 0:02:56]}  Nf6 {[%clk 0:02:58]} 3. d4 {[%clk 0:02:54]}  Nxd5 {[%clk 0:02:58]} 4. Nf3 {[%clk 0:02:52]}  g6 {[%clk 0:02:56]} 5. Be2 {[%clk 0:02:49]}  Bg7 {[%clk 0:02:56]} 6. O-O {[%clk 0:02:50]}  O-O {[%clk 0:02:56]} 7. c3 {[%clk 0:02:48]}  b6 {[%clk 0:02:56]} 8. Nbd2 {[%clk 0:02:45]}  Bb7 {[%clk 0:02:55]} 9. Re1 {[%clk 0:02:43]}  Nd7 {[%clk 0:02:55]} 10. Nc4 {[%clk 0:02:42]}  c5 {[%clk 0:02:54]} 11. Ne3 {[%clk 0:02:32]}  cxd4 {[%clk 0:02:49]} 12. Nxd4 {[%clk 0:02:33]}  Ne5 {[%clk 0:02:35]} 13. Nf3 {[%clk 0:02:16]}  Nxe3 {[%clk 0:02:28]} 14. Bxe3 {[%clk 0:02:16]}  Qxd1 {[%clk 0:02:27]} 15. Raxd1 {[%clk 0:02:17]}  Nxf3+ {[%clk 0:02:26]} 16. Bxf3 {[%clk 0:02:18]}  Bxf3 {[%clk 0:02:22]} 17. gxf3 {[%clk 0:02:19]}  Rfd8 {[%clk 0:02:06]} 18. Kf1 {[%clk 0:02:19]}  f6 {[%clk 0:01:51]} 19. Ke2 {[%clk 0:02:15]}  Kf7 {[%clk 0:01:51]} 20. Rxd8 {[%clk 0:02:12]}  Rxd8 {[%clk 0:01:50]} 21. a4 {[%clk 0:02:13]}  Rd5 {[%clk 0:01:49]} 22. Rd1 {[%clk 0:01:56]}  Ke6 {[%clk 0:01:45]} 23. Rxd5 {[%clk 0:01:55]}  Kxd5 {[%clk 0:01:45]} 24. Kd3 {[%clk 0:01:56]}  f5 {[%clk 0:01:40]} 25. c4+ {[%clk 0:01:55]}  Kc6 {[%clk 0:01:36]} 26. b4 {[%clk 0:01:54]}  Be5 {[%clk 0:01:35]} 27. h3 {[%clk 0:01:53]}  Bd6 {[%clk 0:01:32]} 28. b5+ {[%clk 0:01:51]}  Kc7 {[%clk 0:01:32]} 29. f4 {[%clk 0:01:37]}  Kb7 {[%clk 0:01:27]} 30. Kd4 {[%clk 0:01:26]}  e6 {[%clk 0:01:23]} 31. Kd3 {[%clk 0:01:23]}  Be7 {[%clk 0:01:18]} 32. Bd2 {[%clk 0:01:19]}  h6 {[%clk 0:01:08]} 33. Be3 {[%clk 0:01:15]}  g5 {[%clk 0:01:05]} 34. fxg5 {[%clk 0:01:15]}  hxg5 {[%clk 0:01:00]} 35. c5 {[%clk 0:01:05]}  bxc5 {[%clk 0:00:58]} 36. Kc4 {[%clk 0:01:04]}  Kb6 {[%clk 0:00:53]} 37. Bd2 {[%clk 0:01:04]}  a5 {[%clk 0:00:22]} 38. bxa6 {[%clk 0:00:56]}  Kxa6 {[%clk 0:00:22]} 39. a5 {[%clk 0:00:48]}  g4 {[%clk 0:00:19]} 40. hxg4 {[%clk 0:00:48]}  fxg4 {[%clk 0:00:20]} 41. Bc3 {[%clk 0:00:40]}  Bh4 {[%clk 0:00:18]} 42. Be1 {[%clk 0:00:41]}  Be7 {[%clk 0:00:13]} 43. Bd2 {[%clk 0:00:39]}  Bh4 {[%clk 0:00:12]} 44. Be1 {[%clk 0:00:39]}  Bxf2 {[%clk 0:00:09]} 45. Bxf2 {[%clk 0:00:38]}  Kxa5 {[%clk 0:00:09]} 46. Kxc5 {[%clk 0:00:38]}  Ka4 {[%clk 0:00:08]} 47. Kd6 {[%clk 0:00:38]}  Kb3 {[%clk 0:00:09]} 48. Kxe6 {[%clk 0:00:38]}  Kc4 {[%clk 0:00:08]} 49. Kf5 {[%clk 0:00:38]}  g3 {[%clk 0:00:09]} 50. Bxg3 {[%clk 0:00:39]} 1/2-1/2


[Site "https://www.chess.com"]

[Event "Titled Tuesday Blitz May 2 Late 2023"]
[White "Prohaszka, Peter"]
[Black "Erzhanov, Arman"]
[WhiteFideId "726265"]
[BlackFideId "4138821"]
[WhiteElo "2626"]
[BlackElo "2138"]
[Result "1-0"]
[Round "07"]
[TimeControl "180+2"]
[Date "2023.05.02"]
[WhiteClock "0:01:38"]
[BlackClock "0:01:33"]

1. d4 {[%clk 0:02:52]}  d6 {[%clk 0:02:59]} 2. Nf3 {[%clk 0:02:50]}  g6 {[%clk 0:02:58]} 3. c4 {[%clk 0:02:50]}  Bg7 {[%clk 0:02:58]} 4. Nc3 {[%clk 0:02:51]}  e5 {[%clk 0:02:58]} 5. g3 {[%clk 0:02:45]}  Nc6 {[%clk 0:02:54]} 6. dxe5 {[%clk 0:02:43]}  dxe5 {[%clk 0:02:42]} 7. Qxd8+ {[%clk 0:02:43]}  Nxd8 {[%clk 0:02:43]} 8. Nb5 {[%clk 0:02:28]}  Ne6 {[%clk 0:02:37]} 9. Ng5 {[%clk 0:02:28]}  Nxg5 {[%clk 0:02:13]} 10. Bxg5 {[%clk 0:02:22]}  f6 {[%clk 0:02:08]} 11. Nxc7+ {[%clk 0:02:19]}  Kd8 {[%clk 0:02:05]} 12. Nxa8 {[%clk 0:02:18]}  fxg5 {[%clk 0:02:05]} 13. O-O-O+ {[%clk 0:02:19]}  Bd7 {[%clk 0:02:04]} 14. Bh3 {[%clk 0:02:17]}  Nf6 {[%clk 0:02:02]} 15. Rxd7+ {[%clk 0:02:15]}  Nxd7 {[%clk 0:02:02]} 16. Rd1 {[%clk 0:02:15]}  Bh6 {[%clk 0:01:50]} 17. Rxd7+ {[%clk 0:02:01]}  Kc8 {[%clk 0:01:50]} 18. Bg4 {[%clk 0:01:46]}  Kb8 {[%clk 0:01:43]} 19. Nc7 {[%clk 0:01:46]}  Rc8 {[%clk 0:01:42]} 20. Rxh7 {[%clk 0:01:39]}  Bf8 {[%clk 0:01:33]} 21. Bxc8 {[%clk 0:01:38]} 1-0


[Site "https://www.chess.com"]

[Event "Titled Tuesday Blitz May 2 Late 2023"]
[White "Sai Krishna G V"]
[Black "Berg, Olaf"]
[WhiteFideId "5028280"]
[BlackFideId "7200420"]
[WhiteElo "2359"]
[BlackElo "2269"]
[Result "1-0"]
[Round "07"]
[TimeControl "180+2"]
[Date "2023.05.02"]
[WhiteClock "0:02:30"]
[BlackClock "0:01:54"]

1. e4 {[%clk 0:03:00]}  d5 {[%clk 0:03:00]} 2. exd5 {[%clk 0:03:00]}  Qxd5 {[%clk 0:03:01]} 3. Nc3 {[%clk 0:03:01]}  Qd6 {[%clk 0:03:01]} 4. d4 {[%clk 0:03:01]}  Nf6 {[%clk 0:03:01]} 5. Nf3 {[%clk 0:03:01]}  c6 {[%clk 0:03:01]} 6. Ne5 {[%clk 0:03:00]}  Nbd7 {[%clk 0:03:00]} 7. Nc4 {[%clk 0:02:53]}  Qc7 {[%clk 0:02:32]} 8. Qf3 {[%clk 0:02:52]}  e5 {[%clk 0:02:29]} 9. dxe5 {[%clk 0:02:42]}  Nxe5 {[%clk 0:02:26]} 10. Qe2 {[%clk 0:02:39]}  Bd6 {[%clk 0:02:15]} 11. Bf4 {[%clk 0:02:32]}  Bg4 {[%clk 0:01:54]} 12. Nxd6+ {[%clk 0:02:30]} 1-0


[Site "https://www.chess.com"]

[Event "Titled Tuesday Blitz May 2 Late 2023"]
[White "Onslow, Alfie"]
[Black "Aldokhin, Ivan"]
[WhiteFideId "436976"]
[BlackFideId "24115720"]
[WhiteElo "2114"]
[BlackElo "2322"]
[Result "1-0"]
[Round "07"]
[TimeControl "180+2"]
[Date "2023.05.02"]
[WhiteClock "0:00:11"]
[BlackClock "0:00:02"]

1. e4 {[%clk 0:03:00]}  c5 {[%clk 0:02:57]} 2. Nc3 {[%clk 0:02:59]}  e6 {[%clk 0:02:56]} 3. Nf3 {[%clk 0:02:59]}  a6 {[%clk 0:02:56]} 4. g3 {[%clk 0:03:00]}  Qc7 {[%clk 0:02:48]} 5. Bg2 {[%clk 0:03:00]}  d6 {[%clk 0:02:49]} 6. O-O {[%clk 0:02:58]}  Nf6 {[%clk 0:02:49]} 7. Re1 {[%clk 0:02:54]}  Be7 {[%clk 0:02:34]} 8. a4 {[%clk 0:02:48]}  Nc6 {[%clk 0:02:32]} 9. d4 {[%clk 0:02:48]}  cxd4 {[%clk 0:02:32]} 10. Nxd4 {[%clk 0:02:48]}  O-O {[%clk 0:02:32]} 11. Nxc6 {[%clk 0:02:46]}  bxc6 {[%clk 0:02:31]} 12. e5 {[%clk 0:02:46]}  dxe5 {[%clk 0:02:26]} 13. Qe2 {[%clk 0:02:45]}  Nd5 {[%clk 0:02:19]} 14. Qxe5 {[%clk 0:02:37]}  Qxe5 {[%clk 0:02:15]} 15. Rxe5 {[%clk 0:02:38]}  Bf6 {[%clk 0:02:14]} 16. Re4 {[%clk 0:02:08]}  Rb8 {[%clk 0:02:02]} 17. Rc4 {[%clk 0:01:59]}  Bd7 {[%clk 0:01:38]} 18. a5 {[%clk 0:01:42]}  Rfd8 {[%clk 0:01:18]} 19. Na4 {[%clk 0:01:40]}  Bc8 {[%clk 0:01:07]} 20. c3 {[%clk 0:01:32]}  e5 {[%clk 0:00:32]} 21. Nc5 {[%clk 0:01:02]}  Ne7 {[%clk 0:00:22]} 22. Bf3 {[%clk 0:00:46]}  Nf5 {[%clk 0:00:19]} 23. b4 {[%clk 0:00:42]}  Nd6 {[%clk 0:00:18]} 24. Rg4 {[%clk 0:00:16]}  Bxg4 {[%clk 0:00:12]} 25. Bxg4 {[%clk 0:00:17]}  e4 {[%clk 0:00:13]} 26. Bf4 {[%clk 0:00:17]}  Bxc3 {[%clk 0:00:12]} 27. Rd1 {[%clk 0:00:15]}  Bxb4 {[%clk 0:00:12]} 28. Nxa6 {[%clk 0:00:15]}  Rb5 {[%clk 0:00:03]} 29. Nxb4 {[%clk 0:00:15]}  Rxb4 {[%clk 0:00:03]} 30. Bxd6 {[%clk 0:00:13]}  Ra4 {[%clk 0:00:03]} 31. Rb1 {[%clk 0:00:05]}  h5 {[%clk 0:00:03]} 32. Bc7 {[%clk 0:00:04]}  Ra8 {[%clk 0:00:02]} 33. Bd7 {[%clk 0:00:04]}  R8xa5 {[%clk 0:00:02]} 34. Bxa5 {[%clk 0:00:04]}  Rxa5 {[%clk 0:00:03]} 35. Bxc6 {[%clk 0:00:05]}  Re5 {[%clk 0:00:04]} 36. Re1 {[%clk 0:00:05]}  f5 {[%clk 0:00:04]} 37. Kg2 {[%clk 0:00:06]}  Kf7 {[%clk 0:00:04]} 38. h4 {[%clk 0:00:07]}  Rc5 {[%clk 0:00:04]} 39. Bb7 {[%clk 0:00:07]}  Kf6 {[%clk 0:00:04]} 40. Rb1 {[%clk 0:00:07]}  Rc2 {[%clk 0:00:04]} 41. Kg1 {[%clk 0:00:07]}  Ke5 {[%clk 0:00:04]} 42. Rb5+ {[%clk 0:00:07]}  Kf6 {[%clk 0:00:03]} 43. Rb6+ {[%clk 0:00:07]}  Ke5 {[%clk 0:00:03]} 44. Rb5+ {[%clk 0:00:08]}  Kf6 {[%clk 0:00:04]} 45. Ba8 {[%clk 0:00:08]}  Rc1+ {[%clk 0:00:03]} 46. Kg2 {[%clk 0:00:08]}  Rc2 {[%clk 0:00:04]} 47. Kf1 {[%clk 0:00:08]}  Rc1+ {[%clk 0:00:04]} 48. Ke2 {[%clk 0:00:08]}  Rc2+ {[%clk 0:00:04]} 49. Ke3 {[%clk 0:00:09]}  Rc3+ {[%clk 0:00:05]} 50. Kd2 {[%clk 0:00:09]}  Rf3 {[%clk 0:00:04]} 51. Ke2 {[%clk 0:00:09]}  Ra3 {[%clk 0:00:05]} 52. Rb6+ {[%clk 0:00:10]}  Ke5 {[%clk 0:00:04]} 53. Bc6 {[%clk 0:00:10]}  Ra2+ {[%clk 0:00:04]} 54. Kf1 {[%clk 0:00:10]}  Ra3 {[%clk 0:00:02]} 55. Rb5+ {[%clk 0:00:10]}  Kf6 {[%clk 0:00:02]} 56. Rd5 {[%clk 0:00:10]}  Ke6 {[%clk 0:00:01]} 57. Rd2 {[%clk 0:00:10]}  Rc3 {[%clk 0:00:02]} 58. Bd7+ {[%clk 0:00:10]}  Ke5 {[%clk 0:00:02]} 59. Be8 {[%clk 0:00:10]}  f4 {[%clk 0:00:01]} 60. gxf4+ {[%clk 0:00:10]}  Kxf4 {[%clk 0:00:02]} 61. Bxh5 {[%clk 0:00:11]}  e3 {[%clk 0:00:02]} 62. Rd4+ {[%clk 0:00:10]}  Ke5 {[%clk 0:00:01]} 63. fxe3 {[%clk 0:00:10]}  Rxe3 {[%clk 0:00:02]} 64. Rg4 {[%clk 0:00:11]}  Kf6 {[%clk 0:00:02]} 65. Kf2 {[%clk 0:00:11]}  Re5 {[%clk 0:00:02]} 66. Bg6 {[%clk 0:00:11]} 1-0


[Site "https://www.chess.com"]